fUSD/lending_fUSD_20250521
["ID","MTS","AMOUNT","RATE_DAILY","PERIOD"]
[361853302,1747841432992,-203.08201253,0.000369,35]
[361853303,1747841433002,-446.0,0.00036905,2]
[361853304,1747841433012,-446.0,0.00036932,2]
[361853305,1747841433023,-446.0,0.0003696,2]
[361853306,1747841433032,-701.24,0.00036975,2]
[361853308,1747841433042,-450.406766,0.00036987,2]
[361853309,1747841433052,-427.98,0.00037067,2]
[361853311,1747841433062,-5493.98,0.00037067,30]
[361853313,1747841433072,-158.41,0.00037172,2]
[361853315,1747841433082,-894.27,0.00037296,2]
[361853317,1747841433092,-200.0,0.00037325,2]
[361853319,1747841433103,-1018.23,0.00037344,2]
[361853321,1747841433112,-3187.46,0.00037484,2]
[361853323,1747841433123,-1009.94,0.00037581,2]
[361853325,1747841433133,-203.08201253,0.000379,37]
[361853327,1747841433144,-159.37,0.00038,31]
[361853329,1747841433155,-159.37,0.00038,31]
[361853331,1747841433166,-159.37,0.00038,31]
[361853333,1747841433176,-159.37,0.00038,31]
[361853335,1747841433187,-4000.0,0.00038077,2]
[361853337,1747841433198,-1000.0,0.00038122,7]
[361853339,1747841433210,-875.01,0.000382,7]
[361853341,1747841433221,-1000.0,0.00038295,7]
[361853343,1747841433231,-2536.5313342,0.00038356,5]
[361853345,1747841433242,-168.08,0.00038356,4]
[361853347,1747841433252,-160.19,0.00038356,2]
[361853349,1747841433263,-168.03,0.0003841,2]
[361853351,1747841433273,-921.05,0.00038698,2]
[361853353,1747841433284,-1000.0,0.00038719,7]
[361853355,1747841433295,-1671.15201789,0.000388,2]
[361853357,1747841433307,-203.08201253,0.000389,39]
[361853359,1747841433318,-4593.9824436,0.00038904,14]
[361853361,1747841433329,-6394.42120371,0.00038942,2]
[361853364,1747841433343,-8644.25654548,0.00038942,2]
[361853372,1747841433418,-351.47379218,0.00038942,2]
[361853374,1747841433430,-21326.10276948,0.00038942,2]
[361853376,1747841433440,-500.0,0.00038973,5]
[361853378,1747841433450,-500.0,0.00038973,5]
[361853380,1747841433461,-500.0,0.00038973,2]
[361853382,1747841433471,-500.0,0.00038973,5]
[361853384,1747841433481,-158.51934345,0.00038973,3]
[361853386,1747841433491,-221.38520777,0.00038973,5]
[361853388,1747841433502,-1000.0,0.00038975,7]
[361853391,1747841433512,-1233.90687523,0.00039,40]
[361853393,1747841433525,-247.28012077,0.00039,40]
[361853395,1747841433535,-210.31733108,0.00039076,60]
[361853397,1747841433544,-1000.0,0.0003913,7]
[361853399,1747841433554,-1671.1520178,0.00039185,2]
[361853401,1747841433564,-1000.0,0.00039237,7]
[361853403,1747841433575,-200.327,0.00039357,2]
[361853405,1747841433586,-898.553,0.00039357,2]
[361853407,1747841433596,-554.0,0.00039357,2]
[361853409,1747841433606,-390.888,0.00039357,2]
[361853411,1747841433616,-1150.0,0.00039357,2]
[361853412,1747841433626,-515.567,0.00039357,2]
[361853414,1747841433636,-6834.0,0.00039357,2]
[361853417,1747841433647,-4047.0,0.00039357,2]
[361853419,1747841433657,-500.0,0.00039521,5]
[361853421,1747841433666,-500.0,0.00039521,5]
[361853423,1747841433676,-500.0,0.00039521,5]
[361853424,1747841433686,-1671.1520178,0.00039569,2]
[361853427,1747841433696,-1327.82285057,0.00039615,7]
[361853429,1747841433706,-209.0,0.00039641,2]
[361853431,1747841433718,-1000.0,0.00039714,7]
[361853433,1747841433728,-930.661961,0.00039715,4]
[361853435,1747841433738,-1000.0,0.00039726,120]
[361853437,1747841433748,-1000.0,0.00039726,120]
[361853439,1747841433759,-1000.0,0.00039726,120]
[361853441,1747841433769,-863.28329099,0.00039726,120]
[361853443,1747841433779,-1000.0,0.0003976,7]
[361853445,1747841433790,-1009.94,0.00039845,2]
[361853447,1747841433800,-12922.34,0.000399,14]
[361853449,1747841433810,-203.08201253,0.000399,41]
[361853451,1747841433820,-1671.1520178,0.00039954,15]
[361853453,1747841433830,-158.41,0.00039959,2]
[361853455,1747841433840,-900.0,0.0004,41]
[361853457,1747841433850,-1508.80811093,0.0004,2]
[361853459,1747841433860,-1000.0,0.0004,22]
[361853461,1747841433870,-1000.0,0.0004,22]
[361853463,1747841433880,-1000.0,0.0004,22]
[361853465,1747841433890,-1000.0,0.0004,29]
[361853467,1747841433900,-1000.0,0.0004,29]
[361853469,1747841433910,-658.32980946,0.0004,120]
[361853471,1747841433920,-5000.0,0.0004,30]
[361853473,1747841433930,-150.0,0.00040139,7]
[361853475,1747841433940,-1000.0,0.0004018,2]
[361853477,1747841433950,-200.0,0.000402,120]
[361853479,1747841433962,-159.37,0.000402,31]
[361853481,1747841433972,-159.37,0.000402,31]
[361853483,1747841433982,-159.37,0.000402,31]
[361853485,1747841433993,-159.37,0.000402,31]
[361853487,1747841434005,-1258.0,0.000402,7]
[361853489,1747841434016,-340.14,0.00040274,2]
[361853491,1747841434026,-170.1,0.00040274,2]
[361853493,1747841434036,-170.1,0.00040274,2]
[361853495,1747841434046,-170.1,0.00040274,2]
[361853497,1747841434055,-453.23,0.00040274,2]
[361853499,1747841434066,-1671.1520178,0.00040339,15]
[361853501,1747841434076,-1000.0,0.000404,7]
[361853503,1747841434086,-259.28,0.00040425,120]
[361853505,1747841434096,-1000.0,0.00040439,7]
[361853507,1747841434106,-1000.0,0.000405,7]
[361853509,1747841434116,-1000.0,0.000406,2]
[361853511,1747841434126,-150.0,0.00040636,2]
[361853513,1747841434136,-805.46,0.00040685,2]
[361853515,1747841434146,-458.25,0.00040685,2]
[361853517,1747841434156,-805.46,0.00040685,2]
[361853519,1747841434167,-458.25,0.00040685,2]
[361853521,1747841434177,-805.46,0.00040685,2]
[361853523,1747841434187,-805.46,0.00040685,2]
[361853525,1747841434198,-919.3,0.00040685,2]
[361853527,1747841434208,-458.25,0.00040685,2]
[361853529,1747841434220,-458.25,0.00040685,2]
[361853531,1747841434230,-805.46,0.00040685,2]
[361853533,1747841434240,-12922.34,0.000407,14]
[361853535,1747841434251,-4076.0,0.000407,117]
[361853537,1747841434262,-1671.1520178,0.00040723,15]
[361853540,1747841434272,-16000.0,0.00040766,2]
[361853542,1747841434283,-150.0,0.00040791,2]
[361853543,1747841434293,-2110.0,0.000408,30]
[361853545,1747841434304,-178.49642726,0.000408,28]
[361853548,1747841434315,-150.0,0.00040825,2]
[361853550,1747841434325,-150.0,0.00040892,2]
[361853552,1747841434334,-1255.95,0.000409,5]
[361853554,1747841434345,-50000.0,0.000409,120]
[361853556,1747841434356,-203.08201253,0.000409,43]
[361853558,1747841434366,-150.0,0.00040946,2]
[361853560,1747841434376,-900.0,0.00041,42]
[361853562,1747841434387,-1000.0,0.00041,120]
[361853564,1747841434399,-188.45864736,0.00041,120]
[361853566,1747841434409,-11552.38230403,0.00041,120]
[361853568,1747841434419,-155.0,0.00041,90]
[361853570,1747841434429,-1000.0,0.00041,120]
[361853572,1747841434439,-150.0,0.00041012,2]
[361853574,1747841434450,-1000.0,0.00041042,7]
[361853576,1747841434463,-152.0,0.00041064,3]
[361853578,1747841434473,-858.65423364,0.00041085,2]
[361853580,1747841434484,-670.8,0.00041095,120]
[361853582,1747841434496,-5000.0,0.00041095,5]
[361853584,1747841434506,-253.9,0.00041096,2]
[361853586,1747841434517,-171.44,0.00041096,2]
[361853588,1747841434527,-340.14,0.00041096,2]
[361853590,1747841434538,-453.23,0.00041096,2]
[361853592,1747841434549,-453.23,0.00041096,2]
[361853594,1747841434559,-906.26,0.00041096,2]
[361853596,1747841434570,-864.22,0.00041096,2]
[361853598,1747841434580,-150.0,0.00041096,2]
[361853600,1747841434591,-150.0,0.00041096,2]
[361853602,1747841434601,-1158.37,0.00041096,2]
[361853604,1747841434611,-300.0,0.00041096,2]
[361853606,1747841434620,-150.0,0.00041096,2]
[361853608,1747841434630,-453.23,0.00041096,2]
[361853610,1747841434640,-453.23,0.00041096,2]
[361853612,1747841434650,-341.15,0.00041096,2]
[361853614,1747841434659,-150.22,0.00041096,2]
[361853616,1747841434670,-300.55,0.00041096,2]
[361853618,1747841434680,-150.3,0.00041096,2]
[361853620,1747841434689,-150.34,0.00041096,2]
[361853622,1747841434700,-170.1,0.00041096,2]
[361853624,1747841434710,-170.1,0.00041096,2]
[361853626,1747841434722,-472.06648,0.00041096,7]
[361853628,1747841434733,-150.0,0.00041125,2]
[361853630,1747841434742,-150.0,0.00041131,2]
[361853632,1747841434752,-150.0,0.00041162,14]
[361853633,1747841434762,-178.49642726,0.00041166,28]
[361853634,1747841434772,-858.65423364,0.00041216,2]
[361853635,1747841434781,-512.00514105,0.00041231,14]
[361853636,1747841434794,-487.99485895,0.00041231,14]
[361853637,1747841434803,-150.0,0.00041289,14]
[361853638,1747841434814,-8067.94185255,0.0004129,4]
[361853639,1747841434823,-1997.01627399,0.000413,30]
[361853640,1747841434972,-112.98372601,0.000413,30]
[361853641,1747841434983,-12339.320025,0.000413,120]
[361853642,1747841434993,-800.0,0.000413,15]
[361853643,1747841435003,-1000.0,0.00041301,14]
[361853644,1747841435013,-1600.0,0.000414,15]
[361853645,1747841435022,-150.0,0.00041401,2]
[361853646,1747841435034,-150.0,0.00041409,2]
[361853647,1747841435044,-150.0,0.00041455,14]
[361853648,1747841435055,-150.0,0.00041461,2]
[361853649,1747841435064,-150.0,0.00041472,14]
[361853650,1747841435074,-516.80903344,0.00041473,5]
[361853651,1747841435084,-150.0,0.00041474,2]
[361853652,1747841435093,-8348.06898432,0.0004149,4]
[361853655,1747841437620,-166.68713837,0.00019964,2]
[361853656,1747841437630,-300.0,0.00025908,2]
[361853657,1747841437640,-21.97716354,0.00028041,2]
[361853658,1747841437652,-398.02283646,0.00028041,2]
[361853659,1747841437662,-587.0,0.00030349,2]
[361853660,1747841437672,-193.0,0.00032848,3]
[361853661,1747841437682,-935.0,0.00036357,2]
[361853662,1747841437691,-70.33516354,0.00039357,2]
[361853663,1747841437703,-543.04177673,0.00039357,2]
[361853664,1747841437818,-321.62305973,0.00039357,2]
[361853665,1747841437828,-500.0,0.000406,2]
[361853666,1747841437838,-1671.1520178,0.00041108,15]
[361853667,1747841437848,-7787.81472078,0.0004149,4]
[361853668,1747841437859,-209.0,0.00041492,10]
[361853669,1747841437870,-1671.1520178,0.00041493,15]
[361853670,1747841437880,-12922.34,0.000415,14]
[361853671,1747841437890,-2460.91818389,0.000415,120]
[361853672,1747841437903,-7529.18366612,0.000415,120]
[361853673,1747841437914,-2500.0,0.000415,15]
[361853674,1747841437924,-150.0,0.00041506,14]
[361853675,1747841437934,-150.0,0.00041528,14]
[361853676,1747841437944,-150.0,0.00041531,2]
[361853677,1747841437954,-178.49642726,0.00041531,28]
[361853678,1747841437970,-150.0,0.00041561,2]
[361853679,1747841437981,-944.13372099,0.00041567,31]
[361853682,1747841438273,-150.0,0.00041573,2]
[361853683,1747841438297,-150.0,0.00041585,2]
[361853684,1747841438309,-8067.94185255,0.0004159,4]
[361853685,1747841438321,-10000.0,0.000416,120]
[361853686,1747841438331,-3300.0,0.000416,15]
[361853687,1747841438341,-858.65423365,0.00041614,2]
[361853688,1747841438351,-8067.94185255,0.00041634,4]
[361853689,1747841438361,-805.46,0.00041644,30]
[361853690,1747841438370,-458.25,0.00041644,30]
[361853691,1747841438381,-805.46,0.00041644,30]
[361853692,1747841438391,-458.25,0.00041644,30]
[361853693,1747841438401,-805.46,0.00041644,30]
[361853694,1747841438410,-395.19386087,0.00041644,30]
[361853695,1747841438422,-63.05613913,0.00041644,30]
[361853696,1747841438432,-458.25,0.00041644,30]
[361853697,1747841438441,-570.78486087,0.00041644,30]
[361853698,1747841438561,-234.67513913,0.00041644,30]
[361853699,1747841438571,-805.46,0.00041644,30]
[361853700,1747841438581,-458.25,0.00041644,30]
[361853701,1747841438591,-805.46,0.00041644,30]
[361853702,1747841438600,-805.46,0.00041644,30]
[361853703,1747841438610,-458.25,0.00041644,30]
[361853704,1747841438619,-458.25,0.00041644,30]
[361853705,1747841438629,-666.66,0.00041644,30]
[361853706,1747841438639,-458.25,0.00041644,30]
[361853707,1747841438649,-1000.0,0.00041652,14]
[361853708,1747841438659,-500.0,0.00041673,10]
[361853709,1747841438669,-280.6593419,0.00041673,15]
[361853710,1747841438679,-170.43042132,0.00041685,15]
[361853711,1747841438688,-1330.69509765,0.0004169,4]
[361853712,1747841438769,-6737.2467549,0.0004169,4]
[361853713,1747841438779,-221.60397265,0.00041692,17]
[361853714,1747841438789,-286.35636415,0.00041698,120]
[361853715,1747841438801,-10000.0,0.000417,120]
[361853716,1747841438816,-4200.0,0.000417,15]
[361853717,1747841438826,-2718.7156,0.00041702,2]
[361853718,1747841438838,-169.25875839,0.00041704,4]
[361853719,1747841438849,-1000.0,0.00041714,14]
[361853720,1747841438859,-150.0,0.00041719,2]
[361853721,1747841438869,-150.0,0.00041726,14]
[361853722,1747841438880,-472.06649,0.0004173,10]
[361853723,1747841438891,-280.65934187,0.00041738,15]
[361853724,1747841438901,-8067.94185255,0.00041763,4]
[361853725,1747841438912,-678.2091357,0.0004177,3]
[361853726,1747841438922,-9982.68926488,0.00041771,4]
[361853735,1747841439710,-9315.95977735,0.00041771,4]
[361853736,1747841439726,-3769.26593883,0.00041771,4]
[361853737,1747841439946,-3333.2244201,0.00041771,4]
[361853738,1747841440104,-32903.6269269,0.00041771,4]
[361853739,1747841440120,-3200.26080105,0.00041771,4]
[361853740,1747841440135,-26242.33324889,0.00041771,4]
[361853741,1747841440149,-320.11961115,0.00041771,4]
[361853742,1747841440161,-212.68362166,0.00041773,10]
[361853743,1747841440176,-6187.20759482,0.00041776,4]
[361853744,1747841440192,-1880.73425773,0.00041776,4]
[361853745,1747841440204,-500.0,0.0004178,120]
[361853746,1747841440219,-500.0,0.0004178,2]
[361853747,1747841440231,-500.0,0.0004178,120]
[361853748,1747841440242,-670.8,0.0004178,120]
[361853749,1747841440253,-9926.8202736,0.0004178,4]
[361853750,1747841440270,-3938.72865231,0.0004178,4]
[361853751,1747841440357,-643.23746964,0.0004178,4]
[361853752,1747841440371,-328.4407333,0.0004178,4]
[361853777,1747841443791,-166.68713836,0.00027328,2]
[361853778,1747841443801,-207.0,0.00039641,2]
[361853779,1747841443811,-340.2,0.00041096,2]
[361853780,1747841443822,-1298.65657625,0.0004178,4]
[361853781,1747841443832,-500.05321502,0.00041781,4]
[361853782,1747841443929,-11990.9148588,0.00041781,4]
[361853783,1747841444084,-4837.0972541,0.00041781,4]
[361853784,1747841444096,-303.37476016,0.00041781,4]
[361853785,1747841444217,-75.03767295,0.00041781,4]
[361853786,1747841444251,-5450.5,0.00041781,4]
[361853916,1747841445597,-3752.52611314,0.00041781,4]
[361853920,1747841445610,-5513.69,0.00041781,4]
[361853924,1747841445622,-1731.43823995,0.00041781,4]
[361853927,1747841445634,-1285.3,0.00041781,4]
[361853932,1747841445650,-1094.92727234,0.00041781,4]
[361853953,1747841445789,-19940.73358134,0.00041781,4]
[361853955,1747841445799,-640.2392223,0.00041781,4]
[361853957,1747841445810,-156.0,0.00041785,30]
[361853959,1747841445820,-150.0,0.00041786,30]
[361853961,1747841445830,-150.0,0.00041786,30]
[361853963,1747841445840,-1864.91613645,0.00041786,30]
[361853965,1747841445850,-6447.90081403,0.00041786,30]
[361853967,1747841445859,-8067.94185255,0.00041789,4]
[361853969,1747841445869,-500.0,0.0004179,120]
[361853971,1747841445879,-500.0,0.0004179,2]
[361853973,1747841445889,-500.0,0.0004179,120]
[361853975,1747841445899,-8067.94185255,0.0004179,4]
[361853977,1747841445910,-320.11961115,0.0004179,4]
[361853979,1747841445919,-63138.0646371,0.00041791,2]
[361853981,1747841445929,-10556.14229253,0.00041791,2]
[361853983,1747841445941,-9471.4501868,0.00041791,2]
[361853989,1747841445986,-1092.38,0.00041791,2]
[361853991,1747841445998,-957.56188565,0.00041791,2]
[361853993,1747841446012,-5956.59899874,0.00041791,2]
[361854257,1747841558977,150.0,0.00014,5]
[361854258,1747841602530,153.0,0.00027397,120]
[361854259,1747841853469,321.0,0.00025,60]
[361854263,1747842446225,302.5,0.00027397,120]
[361854269,1747842568090,-160.2,0.00013699,2]
[361854270,1747842568111,-186.844777,0.00013699,2]
[361854271,1747842568133,-250.0,0.00015068,2]
[361854272,1747842608639,250.0,0.00015,2]
[361854273,1747842609717,300.0,0.00017,2]
[361854299,1747842631897,-200.0,0.00019393,2]
[361854301,1747842631907,-250.0,0.00019436,2]
[361854303,1747842631917,-166.9382716,0.00019523,2]
[361854328,1747842632162,-33.0617284,0.00019523,2]
[361854329,1747842632173,-200.0,0.00020544,2]
[361854330,1747842632183,-250.0,0.00021284,2]
[361854331,1747842632193,-200.0,0.00021284,2]
[361854333,1747842632204,-250.0,0.00023127,2]
[361854334,1747842632214,-1167.0,0.00025,2]
[361854335,1747842632224,-186.844777,0.00025,2]
[361854336,1747842632233,-207.09201693,0.000289,20]
[361854337,1747842632243,-1200.0,0.00028998,2]
[361854338,1747842632253,-116.39108052,0.00028998,2]
[361854339,1747842632265,-178.60891948,0.00028998,2]
[361854341,1747842632275,-186.844777,0.00028998,2]
[361854342,1747842632285,-8000.0,0.00029,30]
[361854343,1747842632295,-207.09201692,0.000299,21]
[361854344,1747842632305,-1157.0,0.0003,60]
[361854345,1747842632315,-1156.4542866,0.0003,30]
[361854346,1747842632327,-8843.5457134,0.0003,30]
[361854347,1747842632337,-3093.7620866,0.0003,15]
[361854350,1747842632349,-1906.2379134,0.0003,15]
[361854352,1747842632359,-207.09201692,0.000309,23]
[361854353,1747842632368,-300.0,0.00030999,2]
[361854355,1747842632378,-300.77,0.00031,2]
[361854358,1747842632388,-305.83,0.00031,2]
[361854360,1747842632398,-300.8,0.00031,2]
[361854361,1747842632408,-304.48,0.00031,2]
[361854363,1747842632418,-68.12787647,0.00031,2]
[361854365,1747842632431,-236.07212353,0.00031,2]
[361854367,1747842632441,-303.65,0.00031,2]
[361854369,1747842632452,-301.04,0.00031,2]
[361854371,1747842632461,-301.91,0.00031,2]
[361854373,1747842632471,-305.59,0.00031,2]
[361854375,1747842632481,-301.62,0.00031,2]
[361854377,1747842632491,-304.73,0.00031,2]
[361854378,1747842632500,-302.94,0.00031,2]
[361854380,1747842632510,-305.16,0.00031,2]
[361854382,1747842632520,-303.55,0.00031,2]
[361854384,1747842632529,-300.08,0.00031,2]
[361854386,1747842632539,-303.8,0.00031,2]
[361854388,1747842632549,-303.12,0.00031,2]
[361854390,1747842632559,-300.0,0.00031,2]
[361854392,1747842632568,-300.42,0.00031,2]
[361854394,1747842632578,-304.8,0.00031,2]
[361854396,1747842632587,-300.48,0.00031,2]
[361854398,1747842632598,-304.13,0.00031,2]
[361854400,1747842632608,-300.42,0.00031,2]
[361854402,1747842632617,-302.54,0.00031,2]
[361854404,1747842632627,-1680.0,0.0003142,3]
[361854406,1747842632637,-207.09201692,0.000319,25]
[361854408,1747842632646,-207.09201692,0.000329,27]
[361854410,1747842632656,-207.09201692,0.000339,29]
[361854412,1747842632665,-720.0,0.00034045,3]
[361854414,1747842632676,-2123.70263975,0.00034842,30]
[361854416,1747842632689,-207.09201692,0.000349,31]
[361854418,1747842632700,-500.0,0.00035073,2]
[361854420,1747842632709,-250.0,0.00035079,2]
[361854422,1747842632718,-567.92,0.00035134,2]
[361854424,1747842632729,-150.0,0.00035143,2]
[361854426,1747842632739,-166.73,0.00035145,2]
[361854428,1747842632749,-9813.42716903,0.00035154,2]
[361854431,1747842632770,-9379.51778416,0.00035154,2]
[361854433,1747842632781,-1265.07101545,0.00035154,2]
[361854435,1747842632793,-3441.98403136,0.00035154,2]
[361854437,1747842632803,-277.56120524,0.00035235,2]
[361854449,1747842632915,-759.90879476,0.00035235,2]
[361854451,1747842632925,-718.95,0.00035285,120]
[361854453,1747842632935,-1855.89,0.0003531,2]
[361854455,1747842632945,-164.87,0.00035429,2]
[361854457,1747842632954,-175.0,0.000356,2]
[361854459,1747842632964,-305.98,0.00035735,2]
[361854461,1747842632974,-304.64,0.00035831,2]
[361854463,1747842632986,-301.49,0.00035831,2]
[361854465,1747842632996,-207.09201692,0.000359,33]
[361854467,1747842633006,-2049.437,0.00036357,45]
[361854469,1747842633016,-933.954,0.00036619,2]
[361854471,1747842633026,-415.203,0.00036619,2]
[361854473,1747842633036,-851.315,0.00036619,2]
[361854475,1747842633046,-150.212,0.00036619,2]
[361854477,1747842633058,-269.796,0.00036619,2]
[361854479,1747842633069,-5097.23557267,0.00036619,2]
[361854481,1747842633082,-866.61098312,0.00036619,2]
[361854484,1747842633102,-870.15344421,0.00036619,2]
[361854486,1747842633113,-192.836,0.00036619,2]
[361854488,1747842633123,-274.452,0.00036619,2]
[361854490,1747842633134,-154.0,0.00036619,2]
[361854492,1747842633143,-524.86675463,0.00036619,2]
[361854687,1747842637805,-300.0,0.00028999,2]
[361854688,1747842637816,-300.0,0.00031287,3]
[361854689,1747842637826,-3522.13324537,0.00036619,2]
[361854690,1747842637836,-155.008,0.00036619,2]
[361854691,1747842637846,-200.0,0.00036867,2]
[361854692,1747842637856,-1000.0,0.0003688,2]
[361854693,1747842637866,-207.09201692,0.000369,35]
[361854694,1747842637876,-2250.0,0.00036986,5]
[361854695,1747842637886,-163.6,0.00037005,2]
[361854696,1747842637896,-188.78924041,0.00037035,2]
[361854697,1747842638035,-1147.0,0.00036619,2]
[361854698,1747842638045,-11.21075959,0.00037035,2]
[361854699,1747842638056,-1249.98,0.00037487,5]
[361854700,1747842638066,-1037.47,0.00037499,2]
[361854701,1747842638076,-1000.0,0.00037798,7]
[361854702,1747842638086,-207.09201692,0.000379,37]
[361854703,1747842638096,-163.91,0.00037985,2]
[361854704,1747842638106,-35.37171287,0.00038444,30]
[361854705,1747842638120,-139.94828713,0.00038444,30]
[361854706,1747842638131,-2313.55171288,0.00038571,2]
[361854707,1747842638143,-7475.3396246,0.00038571,2]
[361854708,1747842638283,-444.13866252,0.00038571,2]
[361854710,1747842638294,-525.01,0.000386,7]
[361854712,1747842638303,-1203.98893748,0.00038743,5]
[361854730,1747842639932,-150.0,0.000386,120]
[361854731,1747842639944,-59.67106252,0.00038743,5]
[361854732,1747842639955,-1267.87,0.00038792,5]
[361854733,1747842639966,-435.4217,0.00038888,30]
[361854734,1747842639976,-207.09201692,0.000389,39]
[361854735,1747842639987,-1256.78,0.00038903,5]
[361854736,1747842639998,-1230.8,0.00038914,5]
[361854737,1747842640008,-150.0,0.00039,120]
[361854738,1747842640018,-1800.0,0.00039,40]
[361854739,1747842640028,-1000.0,0.00039,7]
[361854740,1747842640038,-188.9,0.0003904,2]
[361854741,1747842640050,-500.0,0.00039076,60]
[361854742,1747842640060,-2208.46322055,0.00039107,2]
[361854743,1747842640076,-640.12064987,0.00039107,2]
[361854744,1747842640168,-388.1163482,0.00039107,2]
[361854745,1747842640237,-706.16378138,0.00039107,2]
[361854746,1747842640247,-1651.44,0.00039207,120]
[361854747,1747842640257,-207.0,0.00039343,2]
[361854748,1747842640267,-168.08,0.00039425,4]
[361854749,1747842640277,-200.26029,0.000396,120]
[361854750,1747842640287,-3811.04,0.00039619,2]
[361854751,1747842640298,-154.0,0.00039619,2]
[361854752,1747842640308,-2559.325,0.00039619,2]
[361854753,1747842640318,-718.95,0.00039695,120]
[361854754,1747842640328,-1037.47,0.00039762,2]
[361854755,1747842640339,-163.6,0.0003978,2]
[361854756,1747842640349,-7534.05168905,0.000398,2]
[361854757,1747842640358,-2500.0,0.000398,2]
[361854758,1747842640368,-595.22680498,0.000398,50]
[361854759,1747842640378,-500.0,0.00039808,2]
[361854765,1747842640683,-94366.86472908,0.0003988,2]
[361854766,1747842640697,-1000.0,0.000399,2]
[361854767,1747842640711,-1931.9034555,0.000399,2]
[361854768,1747842640723,-2032.30406824,0.000399,2]
[361854769,1747842640735,-8920.24327626,0.000399,2]
[361854770,1747842640745,-2074.5551,0.000399,2]
[361854771,1747842640755,-207.09201692,0.000399,41]
[361854772,1747842640764,-152.94299593,0.000399,2]
[361854773,1747842640775,-500.0,0.00039952,2]
[361854774,1747842640785,-318.6395,0.00039952,2]
[361854775,1747842640795,-326.52711099,0.00039964,15]
[361854776,1747842640815,-7207.52457799,0.00039964,15]
[361854777,1747842640824,-6235.99451143,0.0003999,4]
[361854778,1747842640840,-500.0,0.00039999,7]
[361854779,1747842640851,-500.0,0.00039999,7]
[361854780,1747842640860,-500.0,0.00039999,7]
[361854781,1747842640870,-239.2902,0.00039999,31]
[361854782,1747842640880,-500.0,0.00039999,7]
[361854783,1747842640890,-500.0,0.00039999,7]
[361854784,1747842640900,-500.0,0.00039999,7]
[361854785,1747842640909,-500.0,0.00039999,7]
[361854786,1747842640919,-500.0,0.00039999,7]
[361854787,1747842640930,-500.0,0.00039999,7]
[361854788,1747842640940,-500.0,0.00039999,7]
[361854789,1747842640950,-500.0,0.00039999,7]
[361854790,1747842640960,-500.0,0.00039999,7]
[361854791,1747842640970,-500.0,0.00039999,7]
[361854792,1747842640979,-485.02592731,0.00039999,7]
[361854809,1747842644749,-635.688427,0.00036436,2]
[361854810,1747842644759,-500.0,0.00039998,31]
[361854811,1747842644770,-41.56807696,0.00039998,7]
[361854812,1747842644783,-458.43192304,0.00039998,7]
[361854813,1747842644793,-628.76807696,0.0004,11]
[361854814,1747842644806,-371.23192304,0.0004,11]
[361854815,1747842644815,-543.8120894,0.0004,45]
[361854816,1747842644827,-2139.25972864,0.0004,45]
[361854817,1747842645163,-500.0,0.00039998,31]
[361854818,1747842645173,-500.0,0.00039998,7]
[361854819,1747842645183,-902.09175476,0.0004,45]
[361854820,1747842645194,-669.90824524,0.0004,10]
[361854821,1747842645206,-2587.83,0.0004,10]
[361854822,1747842645252,-500.0,0.00039998,7]
[361854823,1747842645262,-24.41278159,0.0004,10]